bitfinex/quotes_ETHUSD_20241129
["timestamp","ask_amount","ask_price","bid_price","bid_amount"]
[1732890436368,2.77331,3605.8,3604.8,2.51251087]
[1732890436369,2.77332,3605.8,3605.1,2.77379]
[1732890436527,2.77332,3605.8,3605.0,2.77391]
[1732890436528,2.77339,3605.7,3605.0,2.77391]
[1732890437334,2.77351,3605.6,3604.9,2.77399]
[1732890437881,2.77351,3605.6,3605.0,2.77389]
[1732890439243,2.77351,3605.6,3604.8,3.58752]
[1732890439484,3.589,3605.5,3604.7,2.77414]
[1732890439785,2.7737,3605.3,3604.6,2.77417]
[1732890439983,0.8154,3605.5,3604.5,0.825]
[1732890440277,2.77362,3605.4,3604.8,2.77402]
[1732890440442,2.77362,3605.4,3604.7,2.77411]
[1732890440843,2.77371,3605.3,3604.7,2.77411]
[1732890443075,3.58894,3605.5,3604.7,2.77411]
[1732890443293,0.8154,3605.5,3604.7,2.77411]
[1732890443448,2.77362,3605.4,3604.7,2.77411]
[1732890443782,2.77362,3605.4,3604.8,2.77407]
[1732890444548,0.8154,3605.5,3604.6,2.77417]
[1732890444549,2.77377,3605.2,3604.6,2.77417]
[1732890445556,2.77363,3605.4,3604.7,2.77415]
[1732890447294,2.77371,3605.3,3604.7,2.77415]
[1732890447806,0.95420421,3605.5,3604.8,2.77404]
[1732890447953,3.58894,3605.5,3604.9,2.77399]
[1732890448158,0.08675236,3605.4,3604.9,2.77399]
[1732890448463,0.08675236,3605.4,3604.7,2.77415]
[1732890448664,2.86038236,3605.4,3604.7,2.77415]
[1732890448891,0.08675236,3605.3,3604.7,2.77415]
[1732890449141,0.08675236,3605.3,3604.9,2.77399]
[1732890449360,0.08675236,3605.3,3604.5,0.825]
[1732890449361,2.77401,3604.9,3604.5,0.825]
[1732890449584,2.77401,3604.9,3604.2,2.77447]
[1732890449585,0.8154,3604.8,3604.2,2.77447]
[1732890449892,0.90215601,3604.8,3604.2,3.65985009]
[1732890450192,0.8154,3604.8,3604.4,2.77433]
[1732890451303,0.90215601,3604.8,3604.4,2.77433]
[1732890451593,0.08675601,3604.9,3604.4,2.77433]
[1732890451754,0.8154,3605.0,3604.5,2.77426]
[1732890451955,0.08675684,3604.9,3604.6,2.77421]
[1732890452270,0.08675684,3605.0,3604.9,2.774]
[1732890452608,0.08675684,3605.2,3604.7,3.54919]
[1732890452786,0.08675082,3605.1,3604.7,3.54919]
[1732890452996,0.08675082,3605.0,3604.7,3.54919]
[1732890453215,0.08675082,3605.2,3604.7,3.54919]
[1732890453508,0.08675082,3605.1,3604.8,2.77406]
[1732890453811,0.08675082,3605.0,3604.8,2.77406]
[1732890454011,0.08675082,3605.2,3604.8,2.77406]
[1732890454199,0.08675082,3605.1,3604.6,2.7742]
[1732890454396,0.08675082,3605.0,3604.7,0.59301249]
[1732890454610,0.08675082,3605.2,3604.9,2.774]
[1732890454913,0.08675082,3605.1,3604.8,2.77402]
[1732890455327,0.08675082,3605.4,3604.9,2.77399]
[1732890455474,0.0867497,3605.3,3604.9,2.77392]
[1732890455808,0.0867497,3605.2,3604.7,3.36710249]
[1732890455975,0.0867497,3605.1,3604.7,2.77409]
[1732890456169,0.0867497,3605.0,3604.7,2.77409]
[1732890456397,0.0867497,3604.9,3604.7,2.77409]
[1732890456588,0.0867497,3605.2,3604.7,2.77409]
[1732890456783,0.0867497,3605.1,3604.7,2.77409]
[1732890457120,0.0867497,3605.0,3604.7,2.77409]
[1732890457414,0.0867497,3604.9,3604.7,2.77409]
[1732890457583,0.782,3604.9,3604.3,2.77443]
[1732890457792,0.0867497,3604.8,3604.3,2.77443]
[1732890457986,0.782,3604.9,3604.3,2.77443]
[1732890458183,0.08675828,3604.8,3604.4,2.77437]
[1732890458388,0.782,3604.9,3604.4,2.77437]
[1732890458873,0.08676012,3604.8,3604.4,2.77437]
[1732890459198,0.08676012,3604.7,3604.4,2.77437]
[1732890459388,0.08675615,3604.8,3604.4,2.77437]
[1732890459584,0.08675615,3604.7,3604.4,2.77437]
[1732890459803,0.782,3604.9,3604.4,2.77437]
[1732890459984,0.08675776,3604.8,3604.4,2.77437]
[1732890460192,0.08675776,3604.7,3604.2,3.57142]
[1732890460395,0.08676158,3604.6,3604.1,2.7746]
[1732890460716,0.08676158,3604.5,3604.0,2.77468]
[1732890460921,2.91289619,3604.8,3604.1,2.77456]
[1732890461216,2.86092355,3604.7,3604.1,2.77456]
[1732890461415,0.08676355,3604.6,3604.1,2.77456]
[1732890461626,0.08676355,3604.5,3604.1,2.77456]
[1732890461827,0.08676355,3604.4,3604.1,2.77456]
[1732890462128,2.77416,3604.7,3604.1,2.77456]
[1732890462422,2.77416,3604.7,3603.9,0.7718]
[1732890462423,2.77436,3604.5,3603.9,2.77473]
[1732890462714,0.87636742,3604.4,3603.9,2.77473]
[1732890462919,0.08676742,3604.3,3603.7,2.77489]
[1732890463091,0.08676742,3604.2,3603.7,2.77489]
[1732890463289,3.56401,3604.4,3603.7,2.77489]
[1732890463495,0.0867707,3604.3,3603.8,2.77483]
[1732890463681,0.0867707,3604.2,3603.8,2.77483]
[1732890463877,3.56401,3604.4,3603.8,2.77483]
[1732890464103,2.8612311,3604.3,3603.6,0.79]
[1732890464327,0.0867711,3604.2,3603.6,0.79]
[1732890464508,3.564,3604.4,3603.6,2.77498]
[1732890464682,2.77462,3604.1,3603.3,2.77523]
[1732890464884,0.08677212,3604.0,3603.4,2.7751]
[1732890465096,0.08677212,3603.9,3603.4,2.7751]
[1732890465383,0.08677212,3603.8,3603.4,2.7751]
[1732890465584,0.8113,3603.9,3603.4,2.7751]
[1732890465825,0.08678079,3603.8,3603.4,2.7751]
[1732890465987,0.08678073,3603.8,3603.4,2.7751]
[1732890466331,0.8113,3603.9,3603.5,2.77507]
[1732890466485,0.08678103,3603.8,3603.5,2.77505]
[1732890466683,0.8113,3603.9,3603.5,2.77505]
[1732890466881,0.08678044,3603.8,3603.5,2.77505]
[1732890467105,0.8113,3603.9,3603.5,2.77505]
[1732890467313,0.0867807,3603.8,3603.5,2.77505]
[1732890467507,0.8113,3603.9,3603.5,2.77505]
[1732890467688,0.08678066,3603.8,3603.5,2.77505]
[1732890467905,0.8113,3603.9,3603.5,2.77505]
[1732890468112,0.08678136,3603.8,3603.2,2.51251087]
[1732890468338,0.8113,3603.9,3603.2,3.39884996]
[1732890468537,0.08678178,3603.8,3603.2,3.39884996]
[1732890468699,3.58609,3603.9,3603.2,3.39884996]
[1732890468897,0.08678236,3603.8,3603.2,3.39884996]
[1732890469192,3.58609,3603.9,3603.2,3.39884996]
[1732890469437,0.0867833,3603.8,3603.2,3.39884996]
[1732890469730,3.58609,3603.9,3603.2,3.39884996]
[1732890469916,3.58609,3603.9,3603.2,2.51251087]
[1732890470233,2.77509,3603.5,3602.8,3.30271087]
[1732890470453,2.77562,3602.8,3602.0,0.7902]
[1732890470633,0.8154,3602.7,3602.0,0.7902]
[1732890470833,2.77585,3602.5,3601.9,2.51251087]
[1732890471940,3.59116,3602.7,3601.9,2.51251087]
[1732890471941,2.77593,3602.4,3601.9,2.51251087]
[1732890472145,2.77593,3602.4,3601.7,0.7724]
[1732890472847,2.77603,3602.3,3601.6,2.77652]
[1732890473047,0.7994,3602.2,3601.5,5.28912087]
[1732890473646,3.57549,3602.2,3601.5,5.28912087]
[1732890474210,3.57549,3602.2,3601.5,2.51251087]
[1732890474516,2.77616,3602.1,3601.5,2.51251087]
[1732890474721,0.7994,3602.2,3601.5,5.28912087]
[1732890474922,3.5755,3602.2,3601.5,5.28912087]
[1732890475664,0.7994,3602.2,3601.6,2.77653]
[1732890476020,3.57548,3602.2,3601.6,2.77653]
[1732890476755,0.8154,3602.5,3601.8,2.77637]
[1732890477059,2.77601,3602.3,3601.5,3.34051087]
[1732890477246,2.77608,3602.2,3601.5,6.11710087]
[1732890477568,2.77625,3602.0,3601.5,2.51251087]
[1732890477922,3.56277,3601.9,3601.2,3.60485]
[1732890478257,0.7864,3601.9,3601.2,3.60485]
[1732890478752,3.56271,3601.9,3601.2,2.77685]
[1732890478959,2.77645,3601.8,3601.1,5.28937087]
[1732890479136,2.77648,3601.7,3601.1,5.28937087]
[1732890479519,0.7864,3601.9,3601.1,2.77687]
[1732890479726,0.7864,3601.9,3601.3,2.7767]
[1732890480351,0.7864,3601.9,3601.4,2.77665]
[1732890480552,0.8154,3602.3,3601.6,2.51251087]
[1732890480824,0.8154,3602.3,3602.0,2.77622]
[1732890481256,0.8154,3602.3,3601.9,2.7763]
[1732890481461,0.8154,3602.3,3601.8,0.7726]
[1732890481631,0.8055,3602.6,3602.3,2.77596]
[1732890481957,0.8055,3602.9,3602.3,2.77596]
[1732890482165,0.8055,3602.9,3601.6,5.28898087]
[1732890482166,0.751,3603.3,3601.1,3.02628028]
[1732890482319,3.52708,3602.2,3601.5,2.77654]
[1732890482524,2.77621,3602.1,3601.3,2.77672]
[1732890482724,2.77625,3602.0,3601.3,2.77672]
[1732890482928,2.77625,3602.0,3601.4,2.77668]
[1732890483762,3.52709,3602.2,3601.4,2.77668]
[1732890484065,3.52709,3602.2,3601.1,2.87953529]
[1732890484066,3.52709,3602.2,3601.6,2.77649]
[1732890484427,0.751,3602.2,3601.7,2.77645]
[1732890484633,3.52708,3602.2,3601.6,2.77649]
[1732890485171,0.751,3602.2,3601.9,2.7763]
[1732890485371,3.0,3603.3,3602.0,2.77621]
[1732890485372,0.8154,3602.5,3602.0,2.77621]
[1732890485572,0.8154,3602.9,3602.1,0.805]
[1732890485780,0.8154,3602.9,3602.6,2.77576]
[1732890485935,0.8154,3602.9,3602.1,3.58113]
[1732890486287,0.8154,3602.5,3601.9,2.77626]
[1732890486431,3.59125,3602.5,3602.0,2.7762]
[1732890486629,0.8154,3602.5,3602.1,2.77611]
[1732890487393,0.8154,3602.5,3602.2,2.77607]
[1732890487680,0.8154,3602.5,3601.6,3.85887]
[1732890487836,0.8154,3602.5,3602.1,2.77609]
[1732890488250,0.8154,3602.5,3602.3,2.77598]
[1732890488775,0.8154,3602.5,3602.1,2.77609]
[1732890489668,0.8154,3602.5,3601.9,2.77628]
[1732890490055,0.8154,3602.5,3602.0,2.77621]
[1732890490637,0.8154,3602.5,3602.1,2.77615]
[1732890491386,0.7994,3603.1,3602.4,2.77589]
[1732890491576,0.7994,3603.1,3602.6,2.7757]
[1732890491577,0.88620676,3603.1,3602.6,2.7757]
[1732890491871,0.7994,3603.1,3602.6,2.7757]
[1732890492667,0.8862029,3603.1,3602.6,2.7757]
[1732890492970,0.88620371,3603.1,3602.6,2.7757]
[1732890493471,0.88620125,3603.1,3602.6,2.7757]
[1732890493690,0.7994,3603.1,3603.0,2.77546]
[1732890493842,0.08679756,3603.3,3603.0,2.77541]
[1732890494038,0.8069,3603.4,3603.0,2.77541]
[1732890494271,0.89369756,3603.4,3602.8,2.77559]
[1732890494576,3.66885756,3603.4,3602.8,2.77559]
[1732890494761,0.08679756,3603.3,3602.8,2.77559]
[1732890495271,2.86204756,3603.3,3602.7,2.77569]
[1732890495470,0.08679756,3603.2,3602.8,2.77557]
[1732890495674,3.7209368,3603.4,3602.8,2.77557]
[1732890495675,0.08679756,3603.3,3602.8,2.77557]
[1732890496052,0.08679756,3603.3,3602.7,2.77569]
[1732890496365,0.08679756,3603.2,3602.7,2.77569]
[1732890496685,0.08679756,3603.2,3602.5,2.77584]
[1732890496870,0.08679756,3603.2,3602.7,2.77562]
[1732890497353,0.08679756,3603.1,3602.7,2.77562]
[1732890497552,0.08679756,3603.2,3602.8,2.77561]
[1732890497754,0.08679756,3603.1,3602.8,2.77561]
[1732890497961,0.08679756,3603.2,3602.8,2.77561]
[1732890498166,0.08679756,3603.1,3602.8,2.77561]
[1732890498391,0.08679756,3603.0,3602.8,2.77561]
[1732890498698,0.08679756,3603.2,3602.7,2.77569]
[1732890498870,0.08679756,3603.1,3602.2,0.7697]
[1732890499200,0.796,3602.6,3602.2,2.77607]
[1732890499403,0.796,3603.1,3602.4,0.799]
[1732890499552,0.08680719,3603.0,3602.8,2.77556]
[1732890499757,0.08680719,3602.9,3602.8,2.77556]
[1732890499988,0.08679982,3603.0,3602.8,2.77556]
[1732890500194,3.67808829,3603.4,3602.8,2.77556]
[1732890500498,0.08679727,3603.3,3602.8,2.77556]
[1732890500698,0.08679727,3603.2,3602.8,2.77556]
[1732890500994,0.08679741,3603.1,3602.8,2.77556]
[1732890501158,0.08679741,3603.1,3602.6,5.55146]
[1732890501359,0.08679741,3603.0,3602.7,2.77568]
[1732890501581,3.5392,3603.4,3602.7,2.77568]
[1732890501888,0.08679843,3603.3,3602.7,2.77568]
[1732890502090,0.08679843,3603.2,3602.5,2.77585]
[1732890502282,0.08679843,3603.1,3602.8,2.77555]
[1732890502594,0.764,3603.4,3602.8,2.77555]
[1732890502763,0.08679678,3603.3,3602.8,2.77555]
[1732890503099,0.08679678,3603.2,3603.1,6.11929087]
[1732890503388,0.08678651,3603.7,3603.2,2.77528]
[1732890503590,0.08678651,3603.6,3603.3,2.77518]
[1732890503791,0.8154,3603.8,3603.3,2.77518]
[1732890503955,2.86175529,3603.7,3603.1,2.77538]
[1732890504163,0.08678529,3603.6,3603.2,2.77531]
[1732890504383,0.08678529,3603.7,3603.4,2.77515]
[1732890504783,0.08678529,3603.7,3603.2,2.77531]
[1732890505158,0.08678529,3603.6,3603.0,2.77543]
[1732890505358,0.08678529,3603.5,3603.0,2.77543]
[1732890505567,0.7604,3603.4,3602.7,2.51251087]
[1732890505900,2.77529,3603.3,3602.7,2.51251087]
[1732890506067,2.77531,3603.2,3602.6,2.77576]
[1732890506869,0.7604,3603.4,3602.7,2.77568]
[1732890507094,2.77524,3603.3,3602.8,2.7756]
[1732890507525,0.7604,3603.4,3603.0,2.7754]
[1732890507669,0.7604,3603.4,3602.8,2.77561]
[1732890507670,3.53557,3603.4,3602.8,2.77561]
[1732890508007,0.08679332,3603.3,3602.8,2.77561]
[1732890508207,0.7604,3603.4,3602.8,2.77561]
[1732890508371,0.7604,3603.4,3602.9,2.77552]
[1732890508565,0.08679354,3603.3,3602.9,2.77552]
[1732890509242,0.08679354,3603.3,3602.7,5.28819087]
[1732890509577,0.08679354,3603.3,3603.1,2.51251087]
[1732890510007,0.08679354,3603.3,3602.9,2.77547]
[1732890510202,0.08679354,3603.3,3602.7,6.17023096]
[1732890510507,2.86204354,3603.3,3602.7,6.17023096]
[1732890510812,0.7604,3603.4,3602.9,2.77551]
[1732890511029,0.08679038,3603.3,3602.9,2.77552]
[1732890511302,0.08679038,3603.3,3602.7,6.17024096]
[1732890511509,0.08679038,3603.3,3602.7,5.28818087]
[1732890511680,0.08679038,3603.2,3602.7,5.28818087]
[1732890511879,0.08679038,3603.3,3602.9,2.77547]
[1732890512909,0.08679038,3603.2,3602.8,0.2774]
[1732890513283,0.08679038,3603.2,3603.1,5.28789087]
[1732890513486,0.08679173,3603.7,3603.5,2.77502]
[1732890513674,0.08679173,3603.6,3603.3,2.80293872]
[1732890513880,0.08679173,3603.5,3603.3,2.77516]
[1732890514117,0.08679173,3603.9,3603.4,2.77512]
[1732890514276,0.08679173,3603.8,3603.4,2.77512]
[1732890514473,0.08679173,3603.7,3603.4,2.77512]
[1732890514704,0.08679173,3603.6,3603.2,2.77525]
[1732890514899,2.77479,3603.9,3603.1,5.28786087]
[1732890515118,0.08678113,3603.8,3603.1,5.28786087]
[1732890515286,2.77479,3603.9,3602.9,3.58351]
[1732890515287,0.8102,3603.6,3603.0,2.77545]
[1732890515491,0.8102,3603.6,3603.1,2.77533]
[1732890515817,0.08678113,3603.5,3602.9,0.808]
[1732890515989,0.08678113,3603.4,3602.9,0.808]
[1732890516324,0.8102,3603.6,3602.9,0.808]
[1732890516612,2.77515,3603.4,3602.7,5.56558087]
[1732890516828,0.08678434,3603.3,3602.7,5.28818087]
[1732890517123,2.77515,3603.4,3602.7,5.28818087]
[1732890517277,0.08678892,3603.3,3602.7,2.51251087]
[1732890517476,2.77498,3603.7,3602.9,2.77551]
[1732890517673,0.7619,3603.3,3602.7,5.28816087]
[1732890517922,0.7619,3603.3,3602.7,2.51251087]
[1732890518120,0.08678843,3603.2,3602.7,2.51251087]
[1732890518276,0.08678843,3603.1,3602.7,2.51251087]
[1732890518477,0.08678843,3603.0,3602.3,3.61211087]
[1732890518752,0.08679803,3602.9,3602.3,6.38811087]
[1732890518884,0.08679803,3602.8,3602.3,6.38811087]
[1732890519084,0.08679803,3602.8,3602.3,7.30453696]
[1732890519417,0.08680085,3602.7,3602.3,4.25093696]
[1732890519725,2.77558,3602.9,3602.3,4.25093696]
[1732890519882,2.86243301,3602.8,3602.3,3.33451087]
[1732890520078,3.62342301,3602.7,3602.0,2.77621]
[1732890520283,0.08680301,3602.6,3602.0,2.77621]
[1732890520507,0.08680301,3602.5,3602.0,2.77621]
[1732890520710,3.53662,3602.7,3602.0,2.77621]
[1732890520911,0.08680739,3602.6,3602.1,2.77615]
[1732890521144,0.08680739,3602.5,3602.1,2.77615]
[1732890521323,0.7609,3602.7,3602.1,2.77615]
[1732890521523,0.7609,3602.7,3601.9,6.34741087]
[1732890521524,0.08680498,3602.6,3601.9,6.34736087]
[1732890521825,0.08680498,3602.5,3602.0,2.7762]
[1732890522010,0.08680769,3602.4,3602.0,2.7762]
[1732890522213,3.5366,3602.7,3602.0,2.7762]
[1732890522427,0.08680741,3602.6,3602.0,2.7762]
[1732890522622,0.08680741,3602.5,3602.1,2.77609]
[1732890522827,0.7609,3602.7,3602.0,2.77622]
[1732890523337,0.08680674,3602.6,3601.9,4.48348996]
[1732890523507,0.08680674,3602.5,3601.9,3.70248996]
[1732890523712,0.08680674,3602.4,3601.9,3.70248996]
[1732890523946,0.0868057,3602.6,3602.0,2.77621]
[1732890524146,0.0868057,3602.6,3601.9,3.70248996]
[1732890524147,0.08680564,3602.5,3601.9,3.70248996]
[1732890524444,2.77578,3602.6,3601.9,2.79011087]
[1732890524650,0.08680887,3602.5,3601.9,2.79011087]
[1732890524851,0.7609,3602.7,3601.9,2.79011087]
[1732890525022,0.08680809,3602.6,3601.9,5.56640087]
[1732890525224,0.08680809,3602.5,3601.9,5.56640087]
[1732890525535,3.53661,3602.7,3601.9,6.48101696]
[1732890525735,0.08680773,3602.6,3601.9,6.48101696]
[1732890525939,0.08680773,3602.5,3601.9,3.70472696]
[1732890526149,0.7609,3602.7,3602.0,2.77623]
[1732890526553,0.08680772,3602.6,3602.0,2.77623]
[1732890526755,0.08680772,3602.5,3602.0,2.77623]
[1732890527053,0.752,3603.0,3602.3,6.09539087]
[1732890527356,0.752,3603.0,3602.3,2.51251087]
[1732890527357,2.77562,3602.8,3602.3,2.51251087]
[1732890527647,0.08680318,3602.7,3602.3,2.51251087]
[1732890527826,0.08680318,3602.6,3602.3,2.51251087]
[1732890528025,0.08680318,3602.5,3602.3,2.51251087]
[1732890528373,2.77557,3602.9,3602.1,0.02775693]
[1732890528650,2.86242899,3602.8,3602.1,0.02775693]
[1732890528814,0.08680899,3602.7,3602.1,0.02775693]
[1732890529019,0.08680899,3602.6,3602.4,0.8166]
[1732890529259,0.08680899,3602.9,3602.3,2.51251087]
[1732890529413,0.752,3603.0,3602.3,2.51251087]
[1732890529414,0.08680899,3602.8,3602.3,2.51251087]
[1732890529617,2.77562,3602.8,3602.3,2.51251087]
[1732890529827,0.08680595,3602.7,3602.3,2.51251087]
[1732890530026,0.08680595,3602.6,3602.3,2.51251087]
[1732890530242,0.752,3603.0,3602.4,2.77591]
[1732890530463,0.08680201,3602.9,3602.8,2.51251087]
[1732890530752,0.08680201,3603.5,3603.0,2.77541]
[1732890530921,0.08680201,3603.4,3603.2,2.51251087]
[1732890531116,0.7979,3603.7,3603.2,2.51251087]
[1732890531322,0.08678438,3603.6,3603.2,2.51251087]
[1732890531632,0.08678438,3603.5,3603.2,2.51251087]
[1732890531849,0.08678438,3603.4,3603.2,5.28781087]
[1732890532190,0.08678438,3603.6,3603.5,2.77507]
[1732890532454,0.08677323,3604.0,3603.6,2.51251087]
[1732890532653,0.7997,3604.1,3603.6,2.51251087]
[1732890532884,0.08677189,3604.0,3603.6,2.51251087]
[1732890533020,0.08677189,3604.0,3603.6,2.54025767]
[1732890533221,0.7997,3604.1,3603.6,2.51251087]
[1732890533536,0.08677242,3604.0,3603.6,2.51251087]
[1732890533743,0.08677242,3603.9,3603.6,2.51251087]
[1732890534168,0.7997,3604.1,3603.6,2.51251087]
[1732890534334,0.08677575,3604.0,3603.6,2.51251087]
[1732890534653,0.08677575,3603.9,3603.6,2.51251087]
[1732890534817,0.08677575,3603.8,3603.6,2.51251087]
[1732890535027,0.08677575,3604.0,3603.6,2.51251087]
[1732890535244,2.86154575,3603.9,3603.2,3.31981087]
[1732890535562,2.86154575,3603.9,3602.2,2.51251087]
[1732890535563,0.7789,3603.4,3602.4,0.803]
[1732890535766,2.77543,3603.1,3602.1,3.31551087]
[1732890536064,0.08677575,3603.0,3602.9,2.51251087]
[1732890536266,0.08679294,3603.5,3603.0,0.8243]
[1732890536557,0.7652,3603.9,3603.3,2.51251087]
[1732890536558,0.08678347,3603.8,3603.3,2.51251087]
[1732890536758,0.08678347,3603.7,3603.3,2.51251087]
[1732890537163,0.08678347,3603.6,3603.3,2.51251087]
[1732890537381,0.08678347,3603.5,3603.3,2.51251087]
[1732890537666,0.08678347,3603.6,3603.3,2.51251087]
[1732890538021,2.77485,3603.8,3603.3,2.51251087]
[1732890538022,0.08678347,3603.5,3603.3,2.51251087]
[1732890538228,0.08678347,3603.7,3603.3,2.84619196]
[1732890538524,0.08678347,3603.6,3603.3,2.51251087]
[1732890538845,0.08678347,3603.5,3603.3,2.51251087]
[1732890539040,0.08678347,3603.6,3603.3,2.51251087]
[1732890539237,0.08678347,3603.5,3603.3,2.51251087]
[1732890539437,0.08678347,3603.4,3603.3,2.51251087]
[1732890539643,0.08678347,3603.4,3603.3,0.33368109]
[1732890539938,0.08678347,3603.4,3603.0,0.8243]
[1732890540163,2.77516,3603.4,3602.7,1.0979]
[1732890540329,2.77516,3603.4,3602.7,0.8203]
[1732890540330,0.08678649,3603.3,3602.7,0.8203]
[1732890540673,2.77492,3603.7,3602.7,0.8203]
[1732890540969,2.77508,3603.5,3602.7,0.8203]
[1732890541261,0.08678756,3603.6,3602.9,2.51251087]
[1732890541472,0.08678756,3603.4,3602.9,2.51251087]
[1732890541763,2.77492,3603.7,3602.9,2.51251087]
[1732890541970,2.86183551,3603.6,3602.9,0.2776]
[1732890542124,0.08678551,3603.5,3602.9,0.2776]
[1732890542326,2.77505,3603.6,3603.0,0.44844331]
[1732890542327,0.08678551,3603.4,3603.0,0.44844331]
[1732890542523,0.85818551,3603.3,3602.9,0.2776]
[1732890542752,0.08678551,3603.2,3602.9,0.2776]
[1732890542928,3.54663,3603.3,3602.8,0.2776]
[1732890543140,3.54663,3603.3,3602.7,0.8203]
[1732890543375,0.08679337,3603.2,3602.7,0.8203]
[1732890543691,0.08679463,3603.1,3602.7,1.43117109]
[1732890543987,0.08679337,3603.2,3602.7,1.43117109]
[1732890544144,0.08679337,3603.2,3602.8,2.77561]
[1732890544470,0.08679337,3603.2,3602.7,4.48446109]
[1732890544950,0.08679337,3603.2,3602.7,1.70877109]
[1732890545151,2.86211337,3603.2,3602.7,1.43117109]
[1732890545483,0.08679337,3603.2,3602.8,0.3943682]
[1732890546299,2.86212337,3603.2,3602.3,3.56401087]
[1732890546456,3.64672551,3603.1,3602.3,1.0515]
[1732890546853,3.55993,3603.1,3602.3,1.0515]
[1732890547065,0.7845,3603.1,3602.6,2.51251087]
[1732890547304,0.08679337,3603.2,3602.7,0.02775412]
[1732890547591,0.08679512,3603.1,3602.7,0.02775412]
[1732890547895,2.86216337,3603.2,3602.6,2.51251087]
[1732890548103,0.08679527,3603.1,3602.6,2.51251087]
[1732890548389,2.86216337,3603.2,3602.6,2.51251087]
[1732890548575,0.08679417,3603.1,3602.6,2.51251087]
[1732890548781,2.86216337,3603.2,3602.6,2.51251087]
[1732890548981,0.0867952,3603.1,3602.6,2.51251087]
[1732890549199,2.86216337,3603.2,3602.6,2.51251087]
[1732890549399,0.08679354,3603.1,3602.6,2.51251087]
[1732890549558,0.08679354,3603.0,3602.6,2.51251087]
[1732890549755,2.86216337,3603.2,3602.6,2.51251087]
[1732890550058,2.86222638,3603.1,3602.6,2.51251087]
[1732890550400,0.08679638,3603.0,3602.6,2.51251087]
[1732890550613,2.77543,3603.1,3602.6,2.51251087]
[1732890551268,0.08679337,3603.2,3602.6,2.51251087]
[1732890551606,2.86210337,3603.2,3602.6,2.51251087]
[1732890551895,0.08679337,3603.2,3602.6,2.51251087]
[1732890552100,0.08679337,3603.2,3602.6,3.17426516]
[1732890552261,0.7845,3603.4,3602.6,3.14651096]
[1732890552466,0.08679298,3603.1,3602.6,3.17426516]
[1732890552665,2.77525,3603.3,3602.6,3.17426516]
[1732890552966,0.08679348,3603.2,3602.7,4.17114852]
[1732890553171,2.77506,3603.6,3602.7,4.17114852]
[1732890553467,2.8618696,3603.5,3602.7,1.39551852]
[1732890553681,0.0867896,3603.4,3602.7,1.39551852]
[1732890553908,0.0867896,3603.3,3602.7,1.39551852]
[1732890554066,0.0867896,3603.2,3602.8,0.94595494]
[1732890554262,2.77508,3603.5,3602.8,0.94595494]
[1732890554504,0.08678839,3603.4,3602.8,0.94595494]
[1732890554807,0.08678839,3603.3,3602.8,0.94595494]
[1732890555023,0.08678839,3603.2,3602.8,0.94595494]
[1732890555297,0.08678839,3603.1,3602.8,0.94595494]
[1732890555500,2.77508,3603.5,3602.8,0.94595494]
[1732890555798,0.7622,3603.8,3602.7,0.8005]
[1732890555799,0.08679087,3603.4,3602.7,0.8005]
[1732890556009,2.77545,3603.1,3602.4,0.8171]
[1732890556163,0.08679087,3603.0,3602.4,0.8171]
[1732890556363,0.08679087,3602.9,3602.4,0.8171]
[1732890556560,0.08679087,3602.8,3602.4,0.8171]
[1732890556796,0.08679087,3602.7,3602.4,0.8171]
[1732890556965,0.08679087,3602.6,3602.4,0.8171]
[1732890557164,2.77561,3602.9,3602.4,1.42767409]
[1732890557405,0.08680269,3602.8,3602.4,1.42767409]
[1732890557562,0.08680269,3602.7,3602.4,0.8171]
[1732890557763,0.08680269,3602.6,3602.4,0.8171]
[1732890557995,2.77541,3603.1,3602.4,0.8171]
[1732890558234,2.86228167,3603.0,3602.4,0.8171]
[1732890558393,0.08680167,3602.9,3602.4,0.8171]
[1732890558723,0.08680268,3602.8,3602.4,0.8171]
[1732890559305,0.08680268,3602.7,3602.4,0.8171]
[1732890559529,0.08680268,3602.6,3602.4,0.8171]
[1732890559699,2.77555,3602.9,3602.2,2.51251087]
[1732890560026,3.66852192,3602.8,3602.2,2.51251087]
[1732890560227,0.08680192,3602.7,3602.2,2.51251087]
[1732890560521,0.08680192,3602.6,3602.3,0.32970109]
[1732890560712,3.58172,3602.8,3602.3,0.32970109]
[1732890560908,3.58172,3602.8,3602.2,2.51251087]
[1732890560909,0.08680086,3602.7,3602.2,2.51251087]
[1732890561114,0.08680086,3602.6,3602.2,2.51251087]
[1732890561288,0.8061,3602.8,3602.2,2.51251087]
[1732890561488,0.08679777,3602.7,3602.2,2.51251087]
[1732890561701,0.08679777,3602.6,3602.2,2.51251087]
[1732890561924,3.58172,3602.8,3602.2,3.14759596]
[1732890562133,0.086803,3602.7,3602.2,2.51251087]
[1732890562535,0.086803,3602.6,3602.2,2.51251087]
[1732890562689,3.58173,3602.8,3602.2,2.51251087]
[1732890563022,0.08680217,3602.7,3602.2,2.51251087]
[1732890563230,0.08680217,3602.6,3602.2,2.51251087]
[1732890563389,3.58173,3602.8,3602.2,3.14758796]
[1732890563591,0.7532,3602.4,3602.2,0.63507709]
[1732890563789,0.7532,3602.6,3601.9,3.8168]
[1732890564024,0.08680237,3602.5,3601.9,3.8168]
[1732890564223,2.77569,3602.7,3601.9,3.8168]
[1732890564531,0.08680297,3602.6,3601.9,3.8168]
[1732890564828,0.08680297,3602.5,3602.0,2.77622]
[1732890564986,2.77562,3602.8,3602.1,0.91055909]
[1732890565192,0.08680288,3602.7,3602.1,0.91055909]
[1732890565508,0.08680288,3602.6,3602.1,0.91055909]
[1732890565811,0.08680288,3602.5,3602.1,0.91055909]
[1732890566014,0.08680288,3602.4,3602.2,2.51251087]
[1732890566219,3.59097,3602.9,3602.2,2.98523665]
[1732890566426,0.0868013,3602.8,3602.2,2.98523665]
[1732890566732,0.0868013,3602.7,3602.2,2.98523665]
[1732890566909,0.0868013,3602.6,3602.2,2.95747878]
[1732890567227,0.0868013,3602.5,3602.2,2.95747878]
[1732890567395,0.0868013,3602.4,3602.2,2.95747878]
[1732890567595,2.77575,3602.7,3602.2,2.95747878]
[1732890567806,0.08680298,3602.6,3602.2,2.51251087]
[1732890568018,0.08680298,3602.5,3602.2,2.51251087]